bitfinex/quotes_BTCUSD_20251102
["timestamp","ask_amount","ask_price","bid_price","bid_amount"]
[1762063233894,5.0011544,110720.0,110710.0,0.00048126]
[1762063235111,4.9764756,110720.0,110710.0,0.00048126]
[1762063236159,4.9854756,110720.0,110710.0,0.00048126]
[1762063237256,4.99964996,110720.0,110710.0,0.00048126]
[1762063238998,4.99964996,110720.0,110670.0,0.02988821]
[1762063239228,1.3265563,110680.0,110670.0,0.03036994]
[1762063239404,1.3349963,110680.0,110670.0,0.03036994]
[1762063239609,1.76697409,110680.0,110670.0,0.03036994]
[1762063239811,1.76797409,110680.0,110670.0,0.03036994]
[1762063240148,1.58727297,110680.0,110670.0,0.03036994]
[1762063240354,1.17822518,110680.0,110670.0,0.03036994]
[1762063240606,1.56677036,110680.0,110670.0,0.03036994]
[1762063241070,1.56777036,110680.0,110670.0,0.03036994]
[1762063241239,1.17822518,110680.0,110670.0,0.03036994]
[1762063241438,1.95647894,110680.0,110670.0,0.03036994]
[1762063242081,1.95647894,110680.0,110670.0,0.03136994]
[1762063242316,1.95747894,110680.0,110670.0,0.03136994]
[1762063242557,2.13818006,110680.0,110670.0,0.03136994]
[1762063243095,2.13718006,110680.0,110670.0,0.03136994]
[1762063243317,2.13818006,110680.0,110670.0,0.03136994]
[1762063244206,2.22799907,110680.0,110670.0,0.03136994]
[1762063244411,2.22699907,110680.0,110670.0,0.03136994]
[1762063245432,2.13718006,110680.0,110670.0,0.03136994]
[1762063245636,2.13818006,110680.0,110670.0,0.03136994]
[1762063245998,1.95647894,110680.0,110670.0,0.03136994]
[1762063246203,2.13718006,110680.0,110670.0,0.03136994]
[1762063246979,2.13818006,110680.0,110670.0,0.03136994]
[1762063247395,2.13718006,110680.0,110670.0,0.03136994]
[1762063247708,2.13818006,110680.0,110670.0,0.03136994]
[1762063248868,2.13718006,110680.0,110670.0,0.03136994]
[1762063249275,2.13818006,110680.0,110670.0,0.03136994]
[1762063250263,2.13718006,110680.0,110670.0,0.03136994]
[1762063250740,2.13818006,110680.0,110670.0,0.03136994]
[1762063251799,2.13718006,110680.0,110670.0,0.03136994]
[1762063252006,2.13818006,110680.0,110670.0,0.03136994]
[1762063252443,2.13718006,110680.0,110670.0,0.03136994]
[1762063252654,2.13818006,110680.0,110670.0,0.03136994]
[1762063252862,2.24750086,110680.0,110670.0,0.03136994]
[1762063253090,3.50218367,110680.0,110670.0,0.03136994]
[1762063253295,5.31066779,110680.0,110670.0,0.03136994]
[1762063255581,5.22084878,110680.0,110670.0,0.03136994]
[1762063255902,5.22085458,110680.0,110670.0,0.03136994]
[1762063257154,5.62435755,110680.0,110670.0,0.03136994]
[1762063257582,5.65152837,110680.0,110670.0,0.03136994]
[1762063258143,6.47071669,110680.0,110670.0,0.03136994]
[1762063258353,6.5605357,110680.0,110670.0,0.03136994]
[1762063262310,6.5605357,110680.0,110670.0,0.03036994]
[1762063262531,6.5695357,110680.0,110670.0,0.03036994]
[1762063263396,6.60425258,110680.0,110670.0,0.03036994]
[1762063263807,6.59371289,110680.0,110670.0,0.03036994]
[1762063265384,0.95691605,110660.0,110650.0,0.00191552]
[1762063265585,6.49450884,110660.0,110650.0,0.00206021]
[1762063265830,6.52922572,110660.0,110650.0,0.00206021]
[1762063266006,6.53168888,110660.0,110650.0,0.00206021]
[1762063266205,6.52268888,110660.0,110650.0,0.00206021]
[1762063266403,6.52725377,110660.0,110650.0,0.00206021]
[1762063266669,6.52725377,110660.0,110650.0,0.00306021]
[1762063267091,6.52725377,110660.0,110600.0,0.19022634]
[1762063267092,0.03618228,110610.0,110600.0,0.19022634]
[1762063267307,0.03618228,110610.0,110600.0,0.00958631]
[1762063267308,1.17918824,110610.0,110600.0,0.00958631]
[1762063267525,1.17918824,110610.0,110600.0,0.00054472]
[1762063267526,1.20173824,110610.0,110600.0,0.00054472]
[1762063268759,1.20173824,110610.0,110600.0,0.00454472]
[1762063269370,1.40173824,110610.0,110600.0,0.01754472]
[1762063269787,1.40173824,110610.0,110600.0,0.19837654]
[1762063270020,1.40173824,110610.0,110600.0,0.18137654]
[1762063270224,1.40173824,110610.0,110600.0,0.19437654]
[1762063270642,1.40173824,110610.0,110600.0,0.01354472]
[1762063271054,1.40173824,110610.0,110600.0,0.19437654]
[1762063271265,1.40173824,110610.0,110600.0,0.01354472]
[1762063271879,1.40173824,110610.0,110600.0,0.04072997]
[1762063272641,1.40173824,110610.0,110600.0,0.04182758]
[1762063273281,1.41098626,110610.0,110600.0,0.04182758]
[1762063274109,1.41198626,110610.0,110600.0,0.04182758]
[1762063274268,1.41098626,110610.0,110600.0,0.04182758]
[1762063274693,1.41098626,110610.0,110600.0,0.2226594]
[1762063277524,1.21098626,110610.0,110600.0,0.2226594]
[1762063280231,0.82205328,110610.0,110600.0,0.2226594]
[1762063282834,1.02205328,110610.0,110600.0,0.2226594]
[1762063283037,1.41098626,110610.0,110600.0,0.2226594]
[1762063283989,1.21098626,110610.0,110600.0,0.2226594]
[1762063284388,0.623321,110610.0,110600.0,0.2510794]
[1762063284625,0.45950328,110610.0,110600.0,0.2510794]
[1762063284803,0.79950328,110610.0,110600.0,0.2510794]
[1762063285168,0.4105703,110610.0,110600.0,0.2510794]
[1762063285369,0.00944,110620.0,110610.0,0.18081547]
[1762063285568,0.00944,110620.0,110610.0,0.30004137]
[1762063285772,0.77629298,110620.0,110610.0,0.27162137]
[1762063285972,0.38736,110620.0,110610.0,0.27162137]
[1762063286178,0.77629298,110620.0,110610.0,0.27162137]
[1762063286717,0.78982526,110620.0,110610.0,0.27162137]
[1762063286924,0.75364298,110620.0,110610.0,0.29158137]
[1762063287156,0.79082526,110620.0,110610.0,0.29158137]
[1762063287328,0.40189228,110620.0,110610.0,0.29158137]
[1762063287558,0.42354228,110620.0,110610.0,0.27562137]
[1762063287764,0.40089228,110620.0,110610.0,0.29158137]
[1762063287920,0.03618228,110620.0,110610.0,0.71919435]
[1762063289099,0.00944,110640.0,110620.0,0.18079913]
[1762063289300,0.42077546,110640.0,110630.0,0.19198278]
[1762063289496,0.84018141,110640.0,110630.0,0.27158868]
[1762063289699,0.50018141,110640.0,110630.0,0.27158868]
[1762063289913,0.50018141,110640.0,110630.0,0.29876368]
[1762063290104,0.84018141,110640.0,110630.0,0.29876368]
[1762063290509,0.84018141,110640.0,110630.0,0.30176368]
[1762063290940,0.42741843,110640.0,110630.0,0.32252368]
[1762063291148,0.42015707,110640.0,110630.0,0.35920368]
[1762063292145,0.43660707,110640.0,110630.0,0.35920368]
[1762063293247,0.41096843,110640.0,110630.0,0.35920368]
[1762063293394,0.40152843,110640.0,110630.0,0.74813666]
[1762063293762,0.40152843,110640.0,110630.0,0.35920368]
[1762063296104,0.06152843,110640.0,110630.0,0.35920368]
[1762063296303,0.06152843,110640.0,110630.0,0.35964261]
[1762063296304,0.04213476,110640.0,110630.0,0.35964261]
[1762063297315,0.04215055,110640.0,110630.0,0.35964261]
[1762063298234,0.00596827,110640.0,110630.0,0.74857559]
[1762063298433,0.00596827,110640.0,110630.0,0.35964261]
[1762063298644,0.00596827,110640.0,110630.0,0.74857559]
[1762063300121,0.35939367,110650.0,110640.0,0.18076644]
[1762063300122,0.05557595,110650.0,110640.0,0.18076644]
[1762063300342,0.05557595,110650.0,110640.0,0.23320644]
[1762063300343,0.04215324,110650.0,110640.0,0.23320644]
[1762063300772,0.02014885,110650.0,110640.0,0.64930879]
[1762063301197,0.00597096,110650.0,110640.0,0.64930879]
[1762063301421,0.00597096,110650.0,110640.0,0.26052053]
[1762063301615,0.00597096,110650.0,110640.0,0.65035349]
[1762063301825,0.06,110660.0,110650.0,0.18075011]
[1762063302024,0.06597287,110660.0,110650.0,0.34207102]
[1762063302266,0.06597287,110660.0,110650.0,0.32399601]
[1762063302463,0.06597287,110660.0,110650.0,0.35116255]
[1762063303522,0.06597287,110660.0,110650.0,0.35316255]
[1762063305667,0.06,110660.0,110650.0,0.74199551]
[1762063306083,0.07628346,110680.0,110660.0,0.18073377]
[1762063306299,0.06286187,110680.0,110670.0,0.20835744]
[1762063306502,0.06653885,110680.0,110670.0,0.23315744]
[1762063306717,0.06653885,110680.0,110670.0,0.35112582]
[1762063307142,0.06853885,110680.0,110670.0,0.35112582]
[1762063307596,0.03435657,110680.0,110670.0,0.35112582]
[1762063307726,0.03235657,110680.0,110670.0,0.35112582]
[1762063308653,0.00797208,110680.0,110670.0,0.35112582]
[1762063309043,0.00597208,110680.0,110670.0,0.35112582]
[1762063309486,0.00597208,110680.0,110670.0,0.35212582]
[1762063310128,0.03035657,110680.0,110670.0,0.35212582]
[1762063313430,0.64347283,110690.0,110680.0,0.18070112]
[1762063313641,0.66730283,110690.0,110680.0,0.18070112]
[1762063313845,0.68375283,110690.0,110680.0,0.18070112]
[1762063314188,0.68375283,110690.0,110680.0,0.20786274]
[1762063314609,0.68575283,110690.0,110680.0,0.20800746]
[1762063314807,0.68875283,110690.0,110680.0,0.20800746]
[1762063315272,0.27608987,110690.0,110680.0,0.22376746]
[1762063315481,0.24118228,110690.0,110680.0,0.26044746]
[1762063315683,0.04118228,110690.0,110680.0,0.26044746]
[1762063316605,0.03818228,110690.0,110680.0,0.26044746]
[1762063316985,0.03618228,110690.0,110680.0,0.26044746]
[1762063317632,0.03618228,110690.0,110680.0,0.26144746]
[1762063319843,0.38562228,110700.0,110690.0,0.18068479]
[1762063320135,0.38562228,110700.0,110690.0,0.32333069]
[1762063320496,0.03618228,110710.0,110700.0,0.18066847]
[1762063320737,0.20191492,110720.0,110710.0,0.18065215]
[1762063320989,0.21106183,110720.0,110710.0,0.23249215]
[1762063321230,0.21106183,110720.0,110710.0,0.32329805]
[1762063321231,0.20191492,110720.0,110710.0,0.32329805]
[1762063321452,0.2547472,110720.0,110710.0,0.35045229]
[1762063321674,0.2547472,110720.0,110710.0,0.32698229]
[1762063321904,0.64358016,110720.0,110710.0,0.23617639]
[1762063322120,0.64658016,110720.0,110710.0,0.05252424]
[1762063322350,0.67078016,110720.0,110710.0,0.02715424]
[1762063322552,0.85141599,110720.0,110710.0,0.02715424]
[1762063322731,1.20042142,110720.0,110710.0,0.02715424]
[1762063323347,1.22838731,110720.0,110710.0,0.02715424]
[1762063323535,1.23038731,110720.0,110710.0,0.02715424]
[1762063323854,1.23138731,110720.0,110710.0,0.02715424]
[1762063324248,1.23038731,110720.0,110710.0,0.02715424]
[1762063324422,1.23538731,110720.0,110710.0,0.02715424]
[1762063324828,1.23638731,110720.0,110710.0,0.02715424]
[1762063325286,1.23538731,110720.0,110710.0,0.02715424]
[1762063326162,1.23638731,110720.0,110710.0,0.02715424]
[1762063326363,1.23538731,110720.0,110710.0,0.02715424]
[1762063326567,1.23638731,110720.0,110710.0,0.02715424]
[1762063326799,1.23538731,110720.0,110710.0,0.02715424]
[1762063326977,0.03618228,110700.0,110690.0,0.1032559]
[1762063327323,0.45110524,110700.0,110690.0,0.1032559]
[1762063327648,0.45110524,110700.0,110690.0,0.13041432]
[1762063327852,0.06227228,110700.0,110690.0,0.13041432]
[1762063328034,0.45110524,110700.0,110690.0,0.13041432]
[1762063328196,0.47530524,110700.0,110690.0,0.12096432]
[1762063329049,0.47530524,110700.0,110690.0,0.03015842]
[1762063330138,0.65597371,110700.0,110690.0,0.03015842]
[1762063330346,1.58480667,110700.0,110690.0,0.03015842]
[1762063330561,1.58580667,110700.0,110690.0,0.03015842]
[1762063330767,1.58480667,110700.0,110690.0,0.03015842]
[1762063331180,1.58480667,110700.0,110690.0,0.02715842]
[1762063331379,1.59380667,110700.0,110690.0,0.02715842]
[1762063331558,0.37618228,110690.0,110680.0,0.00014472]
[1762063331767,0.81530524,110690.0,110680.0,0.00014472]
[1762063333483,0.81730524,110690.0,110680.0,0.00014472]
[1762063333669,0.81930524,110690.0,110680.0,0.00014472]
[1762063335011,0.99999003,110690.0,110680.0,0.00014472]
[1762063335242,1.00099003,110690.0,110680.0,0.00014472]
[1762063335885,0.99999003,110690.0,110680.0,0.00014472]
[1762063336300,1.00099003,110690.0,110680.0,0.00014472]
[1762063338364,0.81930524,110690.0,110680.0,0.00014472]
[1762063339234,0.81930524,110690.0,110680.0,0.18084584]
[1762063339675,0.81930524,110690.0,110680.0,0.00014472]
[1762063339892,0.81930524,110690.0,110680.0,0.18084584]
[1762063341684,0.81930524,110690.0,110680.0,0.00014472]
[1762063342282,0.43047228,110690.0,110680.0,0.00014472]
[1762063342530,0.99999003,110690.0,110680.0,0.00014472]
[1762063343290,1.00099003,110690.0,110680.0,0.00014472]
[1762063343434,0.99999003,110690.0,110680.0,0.00014472]
[1762063343837,1.00099003,110690.0,110680.0,0.00014472]
[1762063344222,0.99999003,110690.0,110680.0,0.00014472]
[1762063344646,1.00099003,110690.0,110680.0,0.00014472]
[1762063345490,1.00654119,110690.0,110680.0,0.00014472]
[1762063346334,1.00099003,110690.0,110680.0,0.00014472]
[1762063346960,1.20654055,110690.0,110680.0,0.00014472]
[1762063347359,4.61678888,110690.0,110680.0,0.00014472]
[1762063347712,4.64183363,110690.0,110680.0,0.00014472]
[1762063347917,4.68150087,110690.0,110680.0,0.00014472]
[1762063348303,4.69367625,110690.0,110680.0,0.00014472]
[1762063348514,4.69867625,110690.0,110680.0,0.00014472]
[1762063348683,4.69667625,110690.0,110680.0,0.00014472]
[1762063348876,4.69967625,110690.0,110680.0,0.00014472]
[1762063349076,4.69467625,110690.0,110680.0,0.00014472]
[1762063349293,4.70267625,110690.0,110680.0,0.00014472]
[1762063349491,4.72458985,110690.0,110680.0,0.00014472]
[1762063349697,4.71509454,110690.0,110680.0,0.00014472]
[1762063349892,4.74941647,110690.0,110680.0,0.00014472]
[1762063351303,4.79326495,110690.0,110680.0,0.00014472]
[1762063352057,4.79326714,110690.0,110680.0,0.00014472]
[1762063353467,4.80744885,110690.0,110680.0,0.00014472]
[1762063353872,4.78048296,110690.0,110680.0,1e-08]
[1762063354087,3.79577628,110680.0,110670.0,0.02988821]
[1762063354286,5.37762335,110680.0,110670.0,0.03037034]
[1762063354528,5.40362682,110680.0,110670.0,0.03037034]
[1762063354731,5.02033179,110680.0,110670.0,0.03037034]
[1762063355264,5.02333179,110680.0,110670.0,0.03037034]
[1762063355450,5.02233179,110680.0,110670.0,0.03037034]
[1762063355616,5.02350615,110680.0,110670.0,0.03037034]
[1762063355818,5.02750615,110680.0,110670.0,0.03037034]
[1762063355991,5.03650615,110680.0,110670.0,0.03037034]
[1762063356989,5.42533911,110680.0,110670.0,0.03037034]
[1762063358234,5.43952146,110680.0,110670.0,0.03037034]
[1762063358618,5.19542146,110680.0,110670.0,0.03037034]
[1762063359238,5.17593227,110680.0,110670.0,0.03037034]
[1762063359442,5.17039434,110680.0,110670.0,0.03037034]
[1762063360346,4.78156138,110680.0,110670.0,0.03037034]
[1762063360660,4.69174237,110680.0,110670.0,0.03037034]
[1762063361523,5.08057533,110680.0,110670.0,0.03037034]
[1762063361735,5.09475331,110680.0,110670.0,0.03037034]
[1762063363445,6.26331985,110680.0,110670.0,0.03037034]
[1762063367192,3.61693239,110650.0,110640.0,0.00021944]
[1762063367402,5.188418,110650.0,110640.0,0.00070167]
[1762063367602,5.211738,110650.0,110640.0,0.00070167]
[1762063367798,5.23774147,110650.0,110640.0,0.00070167]
[1762063368507,5.25192496,110650.0,110640.0,0.00970167]
[1762063369141,5.22592149,110650.0,110640.0,0.00970167]
[1762063369568,5.30155701,110650.0,110640.0,0.00970167]
[1762063369984,5.211738,110650.0,110640.0,0.00970167]
[1762063370198,5.211738,110650.0,110640.0,0.00470167]
[1762063370411,5.28072591,110650.0,110640.0,0.00470167]
[1762063370615,5.28072591,110650.0,110640.0,0.00670167]
[1762063371050,5.28072591,110650.0,110640.0,0.00970167]
[1762063371262,5.38137031,110650.0,110640.0,0.00970167]
[1762063371465,5.40378136,110650.0,110640.0,0.00970167]
[1762063371882,5.49360037,110650.0,110640.0,0.00970167]
[1762063372107,5.4179626,110650.0,110640.0,0.00970167]
[1762063372318,5.36924206,110650.0,110640.0,0.00970167]
[1762063372659,5.36654805,110650.0,110640.0,0.00970167]
[1762063372864,5.38340472,110650.0,110640.0,0.00970167]
[1762063373591,5.38339268,110650.0,110640.0,0.00970167]
[1762063373790,5.36921144,110650.0,110640.0,0.00970167]
[1762063374401,5.39347226,110650.0,110640.0,0.00970167]
[1762063374813,5.39345749,110650.0,110640.0,0.00970167]
[1762063376946,5.39345399,110650.0,110640.0,0.00970167]
[1762063377152,5.36097363,110650.0,110640.0,0.00970167]
[1762063377348,5.40763812,110650.0,110640.0,0.00970167]
[1762063377548,5.39345399,110650.0,110640.0,0.00970167]
[1762063377955,5.41732956,110650.0,110640.0,0.00970167]
[1762063378996,5.39345399,110650.0,110640.0,0.00970167]
[1762063380625,5.01846038,110650.0,110640.0,0.00970167]
[1762063380828,5.00427642,110650.0,110640.0,0.00970167]
[1762063381034,4.97538352,110650.0,110640.0,0.00970167]
[1762063381929,4.7256455,110650.0,110640.0,0.00970167]
[1762063382087,1.69316514,110650.0,110640.0,0.00970167]
[1762063382487,0.92780529,110650.0,110640.0,0.20951649]
[1762063382692,0.68936345,110650.0,110640.0,0.20951649]
[1762063383666,1.06554573,110650.0,110640.0,0.20951649]
[1762063383868,1.06554573,110650.0,110640.0,0.20351649]
[1762063384068,1.00604345,110650.0,110640.0,0.21948649]
[1762063384275,0.40786588,110650.0,110640.0,0.25347649]
[1762063384486,0.08742816,110650.0,110640.0,0.26047649]
[1762063384698,0.06798466,110650.0,110640.0,0.26047649]
[1762063384889,0.45716223,110650.0,110640.0,0.26047649]
[1762063385102,0.04180588,110650.0,110640.0,0.26047649]
[1762063385312,0.41153995,110650.0,110640.0,0.26047649]
[1762063385513,0.46716573,110650.0,110640.0,0.26047649]
[1762063385733,0.46716573,110650.0,110640.0,0.26747649]
[1762063385937,0.46716573,110650.0,110640.0,0.26047649]
[1762063386138,0.46816573,110650.0,110640.0,0.26347649]
[1762063386549,0.46816573,110650.0,110640.0,0.27347649]
[1762063392112,0.46816573,110650.0,110640.0,0.30064795]
[1762063395247,0.48457573,110650.0,110640.0,0.30064795]
[1762063395458,0.49401573,110650.0,110640.0,0.27569795]
[1762063395813,0.49401573,110650.0,110640.0,0.30064795]
[1762063397290,0.51889573,110650.0,110640.0,0.22863957]
[1762063397502,1.2480733,110650.0,110640.0,0.22863957]
[1762063397682,1.27233412,110650.0,110640.0,0.22863957]
[1762063398260,0.88315655,110650.0,110640.0,0.22863957]
[1762063398679,1.27233412,110650.0,110640.0,0.22863957]
[1762063399789,1.27234967,110650.0,110640.0,0.22863957]
[1762063403158,0.8582921,110650.0,110640.0,0.28091957]
[1762063403363,0.8324421,110650.0,110640.0,0.28091957]
[1762063403552,0.8325058,110650.0,110640.0,0.28091957]
[1762063403775,0.80824498,110650.0,110640.0,0.28091957]
[1762063404218,0.8325058,110650.0,110640.0,0.28091957]
[1762063404430,0.80824498,110650.0,110640.0,0.28091957]
[1762063408709,0.80826162,110650.0,110640.0,0.28091957]
[1762063409776,0.46826162,110650.0,110640.0,0.28091957]
[1762063411786,0.04290177,110650.0,110640.0,0.28091957]
[1762063411973,0.02345827,110650.0,110640.0,0.28091957]
[1762063412184,0.05964055,110650.0,110640.0,0.28091957]
[1762063413807,0.05965295,110650.0,110640.0,0.28091957]
[1762063415786,0.02347067,110650.0,110640.0,0.67009714]
[1762063416017,0.00654387,110650.0,110640.0,0.67009714]
[1762063416781,0.00654387,110650.0,110640.0,0.66009714]
[1762063417166,0.50154453,110670.0,110660.0,0.18073377]
[1762063417382,0.49154181,110670.0,110660.0,0.20611377]
[1762063417583,0.49154181,110670.0,110660.0,0.22900377]
[1762063417736,0.49154181,110670.0,110660.0,0.25617033]
[1762063418598,0.49154181,110670.0,110660.0,0.26017033]
[1762063418959,0.49154181,110670.0,110660.0,0.26517033]
[1762063421155,0.54909217,110670.0,110660.0,0.24228033]
[1762063421325,0.54908443,110670.0,110660.0,0.24228033]
[1762063421499,0.51660407,110670.0,110660.0,0.24228033]
[1762063421919,0.938262,110670.0,110660.0,0.24228033]
[1762063422322,0.54908443,110670.0,110660.0,0.24228033]
[1762063422525,0.51660407,110670.0,110660.0,0.24228033]
[1762063422710,0.54908443,110670.0,110660.0,0.24228033]
[1762063423324,0.93782888,110670.0,110660.0,0.24228033]
[1762063423972,0.93782789,110670.0,110660.0,0.24228033]
[1762063424196,0.90534753,110670.0,110660.0,0.24228033]
[1762063424447,0.96051789,110670.0,110660.0,0.03616656]
[1762063424653,1.30051789,110670.0,110660.0,0.03616656]
[1762063425285,1.2018643,110670.0,110660.0,0.03616656]
[1762063427431,1.21604501,110670.0,110660.0,0.03616656]
[1762063427630,1.2018643,110670.0,110660.0,0.03616656]
[1762063430517,1.2018643,110670.0,110660.0,0.21690033]
[1762063430717,1.21604494,110670.0,110660.0,0.03616656]
[1762063430922,1.2018643,110670.0,110660.0,0.21690033]
[1762063431894,1.2018643,110670.0,110660.0,0.03616656]
[1762063433100,1.2018643,110670.0,110660.0,0.21690033]
[1762063433687,1.2018643,110670.0,110660.0,0.03616656]
[1762063434273,1.2018643,110670.0,110660.0,0.21690033]
[1762063434845,1.21604487,110670.0,110660.0,0.21690033]
[1762063439195,1.21604487,110670.0,110660.0,0.03616656]
[1762063441147,1.39676231,110670.0,110660.0,0.03616656]
[1762063441565,1.39676231,110670.0,110660.0,0.009]
[1762063441770,4.41047464,110670.0,110660.0,0.009]
[1762063441988,4.41147464,110670.0,110660.0,0.009]
[1762063442422,4.41047464,110670.0,110660.0,0.009]
[1762063442863,4.41147464,110670.0,110660.0,0.009]
[1762063443302,4.41047464,110670.0,110660.0,0.004]
[1762063443502,0.2,110650.0,110640.0,0.21767667]
[1762063443618,0.61495101,110650.0,110640.0,0.21767667]
[1762063444054,0.63761101,110650.0,110640.0,0.21767667]
[1762063444698,0.63761101,110650.0,110640.0,0.22867667]
[1762063446370,0.43761101,110650.0,110640.0,0.22867667]
[1762063447317,0.41495101,110650.0,110640.0,0.24499667]
[1762063447523,0.43761101,110650.0,110640.0,0.24499667]
[1762063448907,0.73840101,110660.0,110650.0,0.18075011]
[1762063449281,0.77458329,110660.0,110650.0,0.23200011]
[1762063449472,0.79113329,110660.0,110650.0,0.23200011]
[1762063449693,0.79113329,110660.0,110650.0,0.23552051]
[1762063450136,0.79113329,110660.0,110650.0,0.24052051]
[1762063450479,0.79113329,110660.0,110650.0,0.24252051]
[1762063451698,0.79113329,110660.0,110650.0,0.21535011]
[1762063461696,0.79113329,110660.0,110650.0,0.23900011]
[1762063468025,0.77458329,110660.0,110650.0,0.23900011]
[1762063470970,0.79046329,110660.0,110650.0,0.23900011]
[1762063471772,0.77458329,110660.0,110650.0,0.23900011]
[1762063472227,0.38562228,110660.0,110650.0,0.23900011]
[1762063472393,0.76514329,110660.0,110650.0,0.23900011]
[1762063474256,0.37618228,110660.0,110650.0,0.23900011]
[1762063475217,0.76514329,110660.0,110650.0,0.23900011]
[1762063477792,0.42514329,110660.0,110650.0,0.23900011]
[1762063484398,0.03618228,110660.0,110650.0,0.23900011]
[1762063484598,0.64468481,110670.0,110660.0,0.18073377]
[1762063484787,0.99024572,110670.0,110660.0,0.23210377]
[1762063485399,0.99019373,110670.0,110660.0,0.23210377]
[1762063486054,0.99019373,110670.0,110660.0,0.23410377]
[1762063487522,0.97065221,110670.0,110660.0,0.23410377]
[1762063487932,0.77065221,110670.0,110660.0,0.23410377]
[1762063488490,0.77065221,110670.0,110660.0,0.23210377]
[1762063488731,0.77065221,110670.0,110660.0,0.23510377]
[1762063489029,0.77065221,110670.0,110660.0,0.24210377]
[1762063495464,0.43065221,110670.0,110660.0,0.24210377]
[1762063495700,0.4250913,110670.0,110660.0,0.24210377]
[1762063496119,0.94308916,110680.0,110670.0,0.18071744]
[1762063496302,1.00437907,110680.0,110670.0,0.23208744]
[1762063496686,1.39328809,110680.0,110670.0,0.23208744]
[1762063496898,1.41216809,110680.0,110670.0,0.23208744]
[1762063497825,1.41216809,110680.0,110670.0,0.23808744]
[1762063498355,1.41216809,110680.0,110670.0,0.21442744]
[1762063499779,1.41216809,110680.0,110670.0,0.23875744]
[1762063502231,1.39798795,110680.0,110670.0,0.23875744]
[1762063504328,1.39798795,110680.0,110670.0,0.21442744]
[1762063504724,1.39798795,110680.0,110670.0,0.23875744]
[1762063505302,1.39798795,110680.0,110670.0,0.21442744]
[1762063505929,1.42082795,110680.0,110670.0,0.18671744]
[1762063508052,1.42082795,110680.0,110670.0,0.006]
[1762063508273,1.42082795,110680.0,110670.0,0.18671744]
[1762063509583,1.42082795,110680.0,110670.0,0.006]
[1762063509785,1.42082795,110680.0,110670.0,0.18671744]
[1762063513301,1.40128969,110680.0,110670.0,0.18671744]
[1762063513536,1.42083077,110680.0,110670.0,0.18671744]
[1762063513922,1.42083077,110680.0,110670.0,0.006]
[1762063514603,1.83416614,110680.0,110670.0,0.006]
[1762063515718,1.83416614,110680.0,110670.0,0.18671744]
[1762063515935,1.44525712,110680.0,110670.0,0.18671744]
[1762063517685,1.42083077,110680.0,110670.0,0.18671744]
[1762063517893,1.4152614,110680.0,110670.0,0.18671744]
[1762063518090,1.42083175,110680.0,110670.0,0.18671744]
[1762063518301,1.42083168,110680.0,110670.0,0.18671744]
[1762063521362,1.42083168,110680.0,110670.0,0.006]
[1762063521543,1.42083168,110680.0,110670.0,0.18671744]
[1762063522725,1.42083168,110680.0,110670.0,0.21660565]
[1762063523145,0.64301364,110680.0,110670.0,0.21660565]
[1762063523354,1.42083168,110680.0,110670.0,0.21660565]
[1762063524800,1.42083168,110680.0,110670.0,0.03588821]
[1762063524801,1.6015328,110680.0,110670.0,0.03588821]
[1762063525000,1.42083168,110680.0,110670.0,0.03588821]
[1762063525763,1.6015328,110680.0,110670.0,0.03588821]
[1762063525972,1.42083168,110680.0,110670.0,0.03588821]
[1762063526757,1.43501214,110680.0,110670.0,0.21660565]
[1762063527002,1.42083168,110680.0,110670.0,0.21660565]
[1762063529956,1.42083168,110680.0,110670.0,0.03588821]
[1762063530158,1.43501212,110680.0,110670.0,0.03588821]
[1762063531847,1.43501212,110680.0,110670.0,0.21660565]
[1762063537081,1.43501212,110680.0,110670.0,0.03588821]
[1762063538464,1.61671324,110680.0,110670.0,0.03588821]
[1762063538966,1.61571324,110680.0,110670.0,0.03588821]
[1762063539311,1.43501212,110680.0,110670.0,0.03588821]
[1762063539523,1.61671324,110680.0,110670.0,0.03588821]
[1762063539736,1.61571324,110680.0,110670.0,0.03588821]
[1762063540333,1.43501212,110680.0,110670.0,0.03588821]
[1762063541297,1.43601212,110680.0,110670.0,0.03588821]
[1762063541638,1.43501212,110680.0,110670.0,0.03588821]
[1762063542821,1.61571324,110680.0,110670.0,0.03588821]
[1762063543022,1.61671324,110680.0,110670.0,0.03588821]
[1762063543229,1.6308892,110680.0,110670.0,0.03588821]
[1762063543447,1.61671324,110680.0,110670.0,0.03588821]
[1762063544741,5.03351459,110680.0,110670.0,0.03588821]
[1762063544948,5.07093095,110680.0,110670.0,0.03588821]
[1762063545503,5.06993095,110680.0,110670.0,0.03588821]
[1762063545718,5.07093095,110680.0,110670.0,0.02988821]
[1762063546445,5.08510769,110680.0,110670.0,0.02988821]
[1762063547004,5.08510769,110680.0,110670.0,0.03088821]
[1762063547407,4.69648291,110680.0,110670.0,0.03088821]
[1762063548516,4.77259253,110680.0,110670.0,0.03088821]
[1762063548908,4.69648291,110680.0,110670.0,0.03088821]
[1762063551111,4.69648291,110680.0,110670.0,0.02988821]
[1762063551518,4.69948291,110680.0,110670.0,0.02988821]
[1762063552286,4.70848291,110680.0,110670.0,0.02988821]
[1762063552491,4.71048291,110680.0,110670.0,0.02988821]
[1762063556260,4.11183832,110680.0,110670.0,0.02988821]
[1762063556482,4.65716423,110680.0,110670.0,0.02988821]
[1762063556682,4.64298749,110680.0,110670.0,0.02988821]
[1762063556898,4.64398749,110680.0,110670.0,0.02988821]
[1762063557322,4.64298749,110680.0,110670.0,0.02988821]
[1762063557524,4.46228637,110680.0,110670.0,0.02988821]
[1762063557730,4.46328637,110680.0,110670.0,0.02988821]
[1762063558088,4.64398749,110680.0,110670.0,0.02988821]
[1762063558788,4.70638637,110680.0,110670.0,0.02988821]
[1762063559260,4.70738637,110680.0,110670.0,0.02988821]
[1762063559415,4.88808749,110680.0,110670.0,0.02988821]
[1762063559608,4.88708749,110680.0,110670.0,0.02988821]
[1762063559823,4.90226416,110680.0,110670.0,0.02988821]
[1762063560054,4.92669051,110680.0,110670.0,0.02988821]
[1762063560884,4.95458284,110680.0,110670.0,0.02988821]
[1762063561625,4.95358284,110680.0,110670.0,0.02988821]
[1762063561841,1.35593825,110680.0,110670.0,0.02988821]
[1762063562084,1.3315119,110680.0,110670.0,0.0509504]
[1762063562320,1.3315119,110680.0,110670.0,0.02988821]
[1762063562739,1.51221302,110680.0,110670.0,0.02988821]
[1762063562948,1.90126416,110680.0,110670.0,0.02988821]
[1762063563593,1.90226416,110680.0,110670.0,0.02988821]
[1762063564963,1.51321302,110680.0,110670.0,0.02988821]
[1762063565574,1.51221302,110680.0,110670.0,0.02988821]
[1762063565803,1.51321302,110680.0,110670.0,0.02988821]
[1762063566145,1.3315119,110680.0,110670.0,0.02988821]
[1762063567010,1.90126416,110680.0,110670.0,0.02988821]
[1762063567234,4.95358284,110680.0,110670.0,0.02988821]
[1762063567472,4.98058495,110680.0,110670.0,0.02988821]
[1762063567679,5.01306531,110680.0,110670.0,0.02988821]
[1762063570110,4.99888864,110680.0,110670.0,0.02988821]
[1762063572615,4.76897124,110680.0,110670.0,0.02988821]
[1762063573046,4.75478864,110680.0,110670.0,0.02988821]
[1762063573235,4.77574857,110680.0,110670.0,0.00272092]
[1762063573460,4.78992619,110680.0,110670.0,0.00272092]